bitfinex/quotes_ETHUSD_20250822
["timestamp","ask_amount","ask_price","bid_price","bid_amount"]
[1755859260955,0.3634234,4308.9,4308.8,0.0213]
[1755859261111,0.3634234,4308.9,4308.8,2.34293178]
[1755859261915,0.3634234,4308.9,4308.8,0.02]
[1755859262129,3.3634234,4308.9,4308.8,0.02]
[1755859262827,0.3634234,4308.9,4308.8,0.0213]
[1755859263015,4.3864234,4308.9,4308.8,2.34213178]
[1755859263222,7.3864234,4308.9,4308.8,2.34213178]
[1755859263424,3.3634234,4308.9,4308.8,2.34213178]
[1755859263613,7.3864234,4308.9,4308.8,0.0213]
[1755859263813,7.3864234,4308.9,4308.8,2.34213178]
[1755859264025,3.3634234,4308.9,4308.8,2.34213178]
[1755859264224,3.3634234,4308.9,4308.8,2.34293178]
[1755859264519,7.3864234,4308.9,4308.8,2.34213178]
[1755859264742,7.3864234,4308.9,4308.8,0.0213]
[1755859265863,7.023,4308.9,4308.8,0.02]
[1755859266377,7.51667858,4308.9,4308.8,0.02]
[1755859267070,3.49367858,4308.9,4308.8,0.02]
[1755859267370,7.51367858,4308.9,4308.8,0.02]
[1755859268575,8.25057858,4308.9,4308.8,0.02]
[1755859268930,10.5713565,4308.9,4308.8,0.02]
[1755859269180,8.6131556,4308.9,4308.8,0.02]
[1755859269381,3.8562556,4308.9,4308.8,0.0213]
[1755859269580,7.8732556,4308.9,4308.8,0.0213]
[1755859270437,7.8732556,4308.9,4308.8,0.02]
[1755859270634,10.50333352,4308.9,4308.8,0.02]
[1755859270839,8.6101556,4308.9,4308.8,0.02]
[1755859271267,4.5931556,4308.9,4308.8,0.02]
[1755859271496,7.8802556,4308.9,4308.8,0.02]
[1755859271639,4.5931556,4308.9,4308.8,0.02]
[1755859271834,8.3088556,4308.9,4308.8,0.02]
[1755859272037,7.8812556,4308.9,4308.8,0.02]
[1755859272774,7.8802556,4308.9,4308.8,0.02]
[1755859273442,3.8562556,4308.9,4308.8,0.0213]
[1755859273647,7.8782556,4308.9,4308.8,0.02]
[1755859274476,7.8782556,4308.9,4308.8,0.024]
[1755859274642,8.1875556,4308.9,4308.8,0.024]
[1755859274850,8.6161556,4308.9,4308.8,0.024]
[1755859275046,33.0,4308.8,4308.3,0.004]
[1755859275262,21.21453455,4308.4,4307.8,0.02]
[1755859275467,2.32124612,4308.1,4307.8,0.02]
[1755859275677,3.3093,4307.9,4307.8,0.02]
[1755859275996,5.58897858,4307.9,4307.8,0.02]
[1755859276200,6.01657858,4307.9,4307.8,0.02]
[1755859276496,8.33789523,4307.9,4307.8,0.02]
[1755859277698,10.04357858,4307.9,4307.8,0.02]
[1755859277911,12.36489523,4307.9,4307.8,0.02]
[1755859279108,12.72836387,4307.9,4307.8,0.02]
[1755859279404,27.695122,4307.9,4307.8,0.02]
[1755859279606,25.37380535,4307.9,4307.8,0.02]
[1755859279767,21.34680535,4307.9,4307.8,0.02]
[1755859279973,27.694122,4307.9,4307.8,0.02]
[1755859280167,25.37280535,4307.9,4307.8,0.02]
[1755859280384,25.37180535,4307.9,4307.8,0.02]
[1755859280925,21.34680535,4307.9,4307.8,0.02]
[1755859281134,23.668122,4307.9,4307.8,0.02]
[1755859281305,27.693122,4307.9,4307.8,0.02]
[1755859281479,27.692322,4307.9,4307.8,0.02]
[1755859282527,19.3372547,4307.9,4307.8,0.02]
[1755859282819,12.72279485,4307.9,4307.8,0.02]
[1755859283029,19.33648568,4307.9,4307.8,0.02]
[1755859283227,15.31348568,4307.9,4307.8,0.02]
[1755859283532,9.6625782,4307.9,4307.8,0.02]
[1755859283681,2.6423782,4307.9,4307.8,0.0213]
[1755859283887,6.17146864,4307.9,4307.8,0.0213]
[1755859284779,1.786,4307.9,4307.8,2.34267053]
[1755859285094,5.811,4307.9,4307.8,2.34347053]
[1755859285415,5.811,4307.9,4307.8,0.0213]
[1755859285981,5.811,4307.9,4307.8,2.34267053]
[1755859286984,1.786,4307.9,4307.8,2.34267053]
[1755859287178,5.808,4307.9,4307.8,2.34347053]
[1755859287605,1.786,4307.9,4307.8,2.34347053]
[1755859287893,4.022,4307.9,4307.8,2.34347053]
[1755859288112,1.786,4308.6,4307.8,0.0221]
[1755859288316,4.021,4308.5,4307.8,0.0221]
[1755859288514,4.021,4308.5,4308.2,2.32113936]
[1755859288718,4.021,4308.5,4308.4,0.0013]
[1755859289200,4.02,4308.5,4308.4,0.0013]
[1755859289916,7.02,4308.5,4308.4,0.0013]
[1755859290421,7.02,4308.5,4308.4,2.32234725]
[1755859290728,83.24776498,4308.0,4307.9,2.32131665]
[1755859291120,87.26676498,4308.0,4307.9,2.32131665]
[1755859291293,83.24776498,4308.0,4307.9,2.32131665]
[1755859291492,87.26376498,4308.0,4307.9,2.32131665]
[1755859292234,87.62714211,4308.0,4307.9,2.32131665]
[1755859292387,83.61114211,4308.0,4307.9,2.32131665]
[1755859292594,87.62714211,4308.0,4307.9,2.32131665]
[1755859292795,83.61114211,4308.0,4307.9,2.32131665]
[1755859293424,87.62414211,4308.0,4307.9,2.32131665]
[1755859293696,83.61034211,4308.0,4307.9,2.32131665]
[1755859294321,87.62234211,4308.0,4307.9,2.32131665]
[1755859294505,87.62134211,4308.0,4307.9,2.32131665]
[1755859294911,83.61034211,4308.0,4307.9,2.32131665]
[1755859295097,87.62034211,4308.0,4307.9,2.32131665]
[1755859296101,83.61034211,4308.0,4307.9,2.32131665]
[1755859296430,87.61934211,4308.0,4307.9,2.32131665]
[1755859296989,87.92864211,4308.0,4307.8,0.024]
[1755859297195,87.92864211,4308.0,4307.9,2.32131665]
[1755859297519,87.61934211,4308.0,4307.9,2.32131665]
[1755859298519,87.61934211,4308.0,4307.8,2.34535051]
[1755859299139,87.61934211,4308.0,4307.9,2.32131665]
[1755859299505,88.36964211,4308.0,4307.8,0.024]
[1755859299710,84.36064211,4308.0,4307.8,0.024]
[1755859299921,4.004,4307.9,4307.8,0.024]
[1755859300101,4.4629,4307.9,4307.8,0.024]
[1755859300443,4.7543,4307.9,4307.8,0.024]
[1755859301711,25.04815427,4307.9,4307.8,0.024]
[1755859303149,25.5414742,4307.9,4307.8,0.024]
[1755859304536,25.90494831,4307.9,4307.8,0.024]
[1755859305893,21.5374742,4307.9,4307.8,0.024]
[1755859306097,25.5394742,4307.9,4307.8,0.024]
[1755859307299,26.1994742,4307.9,4307.8,0.024]
[1755859308298,17.84233528,4307.9,4307.8,0.024]
[1755859309568,18.20582385,4307.9,4307.8,0.024]
[1755859309779,15.2205072,4307.9,4307.8,0.024]
[1755859310070,17.54182385,4307.9,4307.8,0.024]
[1755859311307,4.6071085,4307.9,4307.8,0.024]
[1755859311506,11.2225072,4307.9,4307.8,0.024]
[1755859311674,15.2195072,4307.9,4307.8,0.024]
[1755859311874,17.54082385,4307.9,4307.8,0.024]
[1755859312306,17.53982385,4307.9,4307.8,0.024]
[1755859313004,17.54082385,4307.9,4307.8,0.024]
[1755859313380,13.54382385,4307.9,4307.8,0.024]
[1755859313573,17.53882385,4307.9,4307.8,0.024]
[1755859314805,11.2225072,4307.9,4307.8,0.024]
[1755859315010,0.36348857,4307.9,4307.8,0.024]
[1755859315209,0.36348857,4307.9,4307.8,2.34537053]
[1755859315374,3.996,4307.9,4307.8,0.024]
[1755859315573,3.996,4307.9,4307.8,2.34537053]
[1755859317310,86.24696498,4308.0,4307.9,2.32131665]
[1755859317715,87.24096498,4308.0,4307.9,2.32131665]
[1755859318009,87.24016498,4308.0,4307.9,2.32131665]
[1755859318791,83.24616498,4308.0,4307.9,2.32131665]
[1755859318992,87.23916498,4308.0,4307.9,2.32131665]
[1755859320408,83.24616498,4308.0,4307.9,2.32131665]
[1755859320616,87.60053752,4308.0,4307.9,2.32131665]
[1755859321584,87.59953752,4308.0,4307.9,2.32131665]
[1755859322515,83.60953752,4308.0,4307.9,2.32131665]
[1755859322815,83.60953752,4308.0,4307.9,2.34452981]
[1755859323016,83.60953752,4308.0,4307.9,3.00452981]
[1755859323017,78.54102762,4308.0,4307.9,3.00452981]
[1755859323316,78.54102762,4308.0,4307.9,2.98131665]
[1755859323694,78.54102762,4308.0,4307.9,2.32131665]
[1755859326513,82.52802762,4308.0,4307.9,2.32131665]
[1755859326907,82.52902762,4308.0,4307.9,2.32131665]
[1755859327316,82.16565508,4308.0,4307.9,2.32131665]
[1755859328020,82.16565508,4308.0,4307.8,0.024]
[1755859328021,82.45705508,4308.0,4307.8,0.024]
[1755859328221,11.0408987,4307.9,4307.8,0.024]
[1755859328519,11.3275987,4307.9,4307.8,0.024]
[1755859328702,7.3415987,4307.9,4307.8,0.024]
[1755859328901,4.7122,4307.9,4307.8,0.024]
[1755859329111,83.66277208,4308.0,4307.9,2.32131665]
[1755859329299,83.95065508,4308.0,4307.9,2.32131665]
[1755859329497,79.96465508,4308.0,4307.9,2.32131665]
[1755859329722,83.94965508,4308.0,4307.9,2.32131665]
[1755859330418,83.94965508,4308.0,4307.8,2.34536302]
[1755859330419,83.94985508,4308.0,4307.8,2.34536302]
[1755859330741,4.7122,4307.9,4307.8,0.024]
[1755859332113,80.32724233,4308.0,4307.9,2.32131665]
[1755859332411,80.32724233,4308.0,4307.9,2.78798727]
[1755859332607,84.31124233,4308.0,4307.9,2.78798727]
[1755859333216,84.31124233,4308.0,4307.9,2.32131665]
[1755859334829,78.54124233,4308.0,4307.9,2.32131665]
[1755859335196,82.52224233,4308.0,4307.9,2.32131665]
[1755859335646,82.52224233,4308.0,4307.9,2.34452981]
[1755859335941,82.52224233,4308.0,4307.9,2.32131665]
[1755859336153,83.24844233,4308.0,4307.9,2.32131665]
[1755859336355,82.52224233,4308.0,4307.9,2.32131665]
[1755859337840,78.54124233,4308.0,4307.9,2.32131665]
[1755859338137,82.52324233,4308.0,4307.9,2.32131665]
[1755859338945,78.54124233,4308.0,4307.9,2.32131665]
[1755859339243,82.52124233,4308.0,4307.9,2.32131665]
[1755859339445,82.52024233,4308.0,4307.9,2.32131665]
[1755859339639,82.51924233,4308.0,4307.9,2.32131665]
[1755859340434,78.54124233,4308.0,4307.9,2.32131665]
[1755859340876,82.51824233,4308.0,4307.9,2.32131665]
[1755859341047,79.26744233,4308.0,4307.9,2.32131665]
[1755859341360,83.24444233,4308.0,4307.9,2.32131665]
[1755859341568,83.24444233,4308.0,4307.8,0.024]
[1755859341870,4.4165,4307.9,4307.8,2.34537053]
[1755859342046,4.4165,4307.9,4307.8,0.024]
[1755859342047,4.7032,4307.9,4307.8,0.024]
[1755859342233,4.7032,4307.9,4307.8,2.34537053]
[1755859342638,4.7024,4307.9,4307.8,2.34537053]
[1755859343570,78.54124233,4308.0,4307.9,2.32131665]
[1755859343865,82.51624233,4308.0,4307.9,2.32131665]
[1755859344036,78.54124233,4308.0,4307.9,2.32131665]
[1755859344238,82.51624233,4308.0,4307.9,2.32131665]
[1755859344471,78.54124233,4308.0,4307.9,2.32131665]
[1755859346954,78.54124233,4308.0,4307.8,2.34537053]
[1755859346955,83.24144233,4308.0,4307.8,0.024]
[1755859347158,4.4135,4307.9,4307.8,0.024]
[1755859347355,4.7002,4307.9,4307.8,0.024]
[1755859347557,7.06233963,4307.9,4307.8,0.024]
[1755859348460,4.7002,4307.9,4307.8,0.024]
[1755859349390,3.972,4307.9,4307.8,2.34537053]
[1755859349544,78.17785508,4308.0,4307.8,2.34537053]
[1755859349545,78.17785508,4308.0,4307.9,2.32131665]
[1755859349747,82.14985508,4308.0,4307.9,2.32131665]
[1755859350764,82.87605508,4308.0,4307.9,2.32131665]
[1755859350964,83.23942344,4308.0,4307.9,2.32131665]
[1755859351162,79.26742344,4308.0,4307.9,2.32131665]
[1755859351391,82.51422344,4308.0,4307.9,2.32131665]
[1755859352391,78.54122344,4308.0,4307.9,2.32131665]
[1755859352669,82.51222344,4308.0,4307.9,2.32131665]
[1755859353201,78.54122344,4308.0,4307.9,2.32131665]
[1755859354652,78.54042344,4308.0,4307.9,2.32131665]
[1755859355860,78.90325508,4308.0,4307.8,0.024]
[1755859356064,82.43175508,4308.0,4307.9,2.32131665]
[1755859356585,82.87125508,4308.0,4307.9,2.32131665]
[1755859356787,82.87125508,4308.0,4307.8,2.34535735]
[1755859356988,82.87125508,4308.0,4307.8,0.024]
[1755859356989,11.0218987,4307.9,4307.8,0.024]
[1755859357382,11.3085987,4307.9,4307.8,0.024]
[1755859359400,11.6720105,4307.9,4307.8,0.024]
[1755859360177,13.4580105,4307.9,4307.8,0.024]
[1755859362401,15.69177041,4307.9,4307.8,0.024]
[1755859365808,15.32835861,4307.9,4307.8,0.024]
[1755859366607,8.71295991,4307.9,4307.8,0.024]
[1755859366930,15.32835861,4307.9,4307.8,0.024]
[1755859367244,15.32755861,4307.9,4307.8,0.024]
[1755859369337,15.6909673,4307.9,4307.8,0.024]
[1755859370000,11.7247673,4307.9,4307.8,0.024]
[1755859370198,15.6807673,4307.9,4307.8,0.024]
[1755859371199,2.59790869,4307.9,4307.8,0.024]
[1755859371408,6.10440869,4307.9,4307.8,0.024]
[1755859372203,2.90030869,4307.9,4307.8,0.024]
[1755859372604,6.85530869,4307.9,4307.8,0.024]
[1755859373807,9.85530869,4307.9,4307.8,0.024]
[1755859374129,12.21744832,4307.9,4307.8,0.024]
[1755859375809,8.26244832,4307.9,4307.8,0.024]
[1755859376121,12.21744832,4307.9,4307.8,0.024]
[1755859376524,8.26244832,4307.9,4307.8,0.024]
[1755859376742,12.21744832,4307.9,4307.8,0.024]
[1755859376928,18.83284702,4307.9,4307.8,0.024]
[1755859377443,19.32785804,4307.9,4307.8,0.024]
[1755859378946,14.87784702,4307.9,4307.8,0.024]
[1755859379246,18.83204702,4307.9,4307.8,0.024]
[1755859379563,18.46863833,4307.9,4307.8,0.024]
[1755859380335,18.96369002,4307.9,4307.8,0.024]
[1755859380563,12.64655039,4307.9,4307.8,0.024]
[1755859380738,16.1064987,4307.9,4307.8,0.024]
[1755859381370,78.17705508,4308.0,4307.9,2.32131665]
[1755859381585,82.13205508,4308.0,4307.9,2.32131665]
[1755859381881,78.17705508,4308.0,4307.9,2.32131665]
[1755859382037,78.17705508,4308.0,4307.9,2.78798537]
[1755859382988,78.54041261,4308.0,4307.9,2.78798537]
[1755859385842,78.17705508,4308.0,4307.9,2.78798537]
[1755859386078,78.17705508,4308.0,4307.9,2.32131665]
[1755859389592,78.54040934,4308.0,4307.9,2.32131665]
[1755859391490,78.53960934,4308.0,4307.9,2.32131665]
[1755859391836,79.27170934,4308.0,4307.9,2.32131665]
[1755859392017,83.22570934,4308.0,4307.9,2.32131665]
[1755859393526,82.49360934,4308.0,4307.9,2.32131665]
[1755859394198,83.22570934,4308.0,4307.9,2.32131665]
[1755859394392,82.49360934,4308.0,4307.9,2.32131665]
[1755859395223,78.53960934,4308.0,4307.9,2.32131665]
[1755859395402,82.49360934,4308.0,4307.9,2.32131665]
[1755859395609,78.53960934,4308.0,4307.9,2.78799055]
[1755859395809,78.68960934,4308.0,4307.9,2.78799055]
[1755859396734,78.32625508,4308.0,4307.9,2.78799055]
[1755859398558,89.19045378,4308.0,4307.8,0.024]
[1755859398714,78.62105508,4308.0,4307.9,2.32131665]
[1755859398908,83.01435508,4308.0,4307.9,2.32131665]
[1755859399311,79.05835508,4308.0,4307.9,2.32131665]
[1755859399639,83.01435508,4308.0,4307.9,2.32131665]
[1755859400208,83.3777246,4308.0,4307.9,2.32131665]
[1755859402724,78.6896246,4308.0,4307.9,2.32131665]
[1755859402927,82.6426246,4308.0,4307.9,2.32131665]
[1755859403614,82.6418246,4308.0,4307.9,2.32131665]
[1755859405351,82.6428246,4308.0,4307.9,2.32131665]
[1755859405942,78.6888246,4308.0,4307.9,2.32131665]
[1755859406335,78.6888246,4308.0,4307.9,2.78798713]
[1755859407060,83.3749246,4308.0,4307.9,2.32131665]
[1755859408263,79.4209246,4308.0,4307.9,2.32131665]
[1755859408629,83.3749246,4308.0,4307.9,2.32131665]
[1755859410020,79.4209246,4308.0,4307.9,2.32131665]
[1755859410460,83.3749246,4308.0,4307.9,2.32131665]
[1755859410753,82.71675508,4308.0,4307.9,2.32131665]
[1755859410921,82.27945508,4308.0,4307.9,2.32131665]
[1755859412039,78.32545508,4308.0,4307.9,2.32131665]
[1755859412237,82.27945508,4308.0,4307.9,2.32131665]
[1755859414062,78.68876841,4308.0,4307.9,2.78798713]
[1755859415459,78.68876841,4308.0,4307.9,2.32131665]
[1755859416031,78.68796841,4308.0,4307.9,2.32131665]
[1755859416741,78.32465508,4308.0,4307.9,2.32131665]
[1755859420162,78.68796247,4308.0,4307.9,2.32131665]
[1755859421588,79.46846247,4308.0,4307.9,2.32131665]
[1755859423886,83.42146247,4308.0,4307.9,2.32131665]
[1755859427088,83.05815508,4308.0,4307.9,2.32131665]
[1755859428158,83.05735508,4308.0,4307.9,2.32131665]
[1755859430088,79.10435508,4308.0,4307.9,2.32131665]
[1755859430460,79.467719,4308.0,4307.9,2.32131665]
[1755859430659,83.420719,4308.0,4307.9,2.32131665]
[1755859430885,78.687219,4308.0,4307.9,2.32131665]
[1755859432379,79.467719,4308.0,4307.9,2.32131665]
[1755859433471,83.419719,4308.0,4307.9,2.32131665]
[1755859434069,79.467719,4308.0,4307.9,2.32131665]
[1755859434270,83.419719,4308.0,4307.9,2.32131665]
[1755859434477,79.467719,4308.0,4307.9,2.32131665]
[1755859434686,83.419719,4308.0,4307.9,2.32131665]
[1755859435794,79.467719,4308.0,4307.9,2.32131665]
[1755859435997,83.419719,4308.0,4307.9,2.32131665]
[1755859437770,83.05635508,4308.0,4307.9,2.32131665]
[1755859439688,79.10435508,4308.0,4307.9,2.32131665]
[1755859439888,78.32385508,4308.0,4307.9,2.34452981]
[1755859440082,78.32385508,4308.0,4307.9,2.32131665]
[1755859440470,78.32305508,4308.0,4307.9,2.32131665]
[1755859441585,78.68641412,4308.0,4307.9,2.32131665]
[1755859442273,78.68641412,4308.0,4307.9,3.20063533]
[1755859445910,78.32305508,4308.0,4307.9,3.20063533]
[1755859446088,78.32305508,4308.0,4307.9,2.32131665]
[1755859447889,79.10355508,4308.0,4307.9,2.32131665]
[1755859449589,79.4669143,4308.0,4307.9,2.32131665]
[1755859450524,79.3169143,4308.0,4307.9,2.17131665]
[1755859451392,78.5364143,4308.0,4307.9,2.17131665]
[1755859451595,78.5364143,4308.0,4307.9,6.12231665]
[1755859452113,79.3116143,4308.0,4307.9,6.12231665]
[1755859452694,79.3108143,4308.0,4307.9,6.12231665]
[1755859453414,78.5356143,4308.0,4307.9,6.12231665]
[1755859453917,78.9971143,4308.0,4307.9,6.12231665]
[1755859456216,78.5356143,4308.0,4307.9,6.12231665]
[1755859458806,78.8493143,4308.0,4307.9,6.12231665]
[1755859459011,79.3108143,4308.0,4307.9,6.12231665]
[1755859460752,78.9971143,4308.0,4307.9,6.12231665]
[1755859462438,78.5356143,4308.0,4307.9,6.12231665]
[1755859462598,78.17225508,4308.0,4307.9,6.12231665]
[1755859462804,78.94745508,4308.0,4307.9,6.12231665]
[1755859465016,78.94665508,4308.0,4307.9,6.12231665]
[1755859465628,79.31001384,4308.0,4307.9,6.12231665]
[1755859465944,78.94665508,4308.0,4307.9,6.12231665]
[1755859468443,78.94665508,4308.0,4307.9,2.17131665]
[1755859468610,78.94665508,4308.0,4307.8,0.024]
[1755859468611,81.30879471,4308.0,4307.8,0.024]
[1755859468811,4.4105,4307.9,4307.8,2.34537053]
[1755859469007,0.7752,4307.9,4307.8,2.34537053]
[1755859469248,4.7242,4307.9,4307.8,2.34537053]
[1755859469728,7.08633963,4307.9,4307.8,2.34537053]
[1755859471442,4.7242,4307.9,4307.8,2.34537053]
[1755859472039,0.7752,4307.9,4307.8,2.34537053]
[1755859472250,4.7242,4307.9,4307.8,2.34537053]
[1755859472554,0.7752,4307.9,4307.8,2.34537053]
[1755859472758,4.7232,4307.9,4307.8,2.34537053]
[1755859472971,0.7752,4307.9,4307.8,2.34537053]
[1755859473259,4.7232,4307.9,4307.8,2.34537053]
[1755859475158,78.53485249,4308.0,4307.9,2.32131665]
[1755859475541,78.17145508,4308.0,4307.9,2.32131665]
[1755859475742,78.17145508,4308.0,4307.9,3.41493278]
[1755859476118,74.37237758,4308.0,4307.9,3.41493278]
[1755859476325,59.57345906,4308.0,4307.9,3.41493278]
[1755859476559,59.57345906,4308.0,4307.9,4.11280378]
[1755859477216,59.57265906,4308.0,4307.9,4.11280378]
[1755859480077,60.33185906,4308.0,4307.9,3.01918765]
[1755859480278,60.33185906,4308.0,4307.9,6.96718765]
[1755859480479,60.33185906,4308.0,4307.9,2.32131665]
[1755859483761,64.27885906,4308.0,4307.9,2.32131665]
[1755859487097,60.33185906,4308.0,4307.9,2.32131665]
[1755859489082,64.27885906,4308.0,4307.9,2.32131665]
[1755859489388,64.27805906,4308.0,4307.9,2.32131665]
[1755859490508,59.57185906,4308.0,4307.9,2.32131665]
[1755859490898,60.01545906,4308.0,4307.9,2.32131665]
[1755859491308,60.33105906,4308.0,4307.9,2.32131665]
[1755859493529,60.69443787,4308.0,4307.9,2.32131665]
[1755859493735,64.64043787,4308.0,4307.9,2.32131665]
[1755859494431,67.0025775,4308.0,4307.8,0.024]
[1755859494734,4.3896,4307.9,4307.8,2.34537053]
[1755859495038,4.7052,4307.9,4307.8,0.024]
[1755859498041,5.1998104,4307.9,4307.8,0.024]
[1755859498397,4.7052,4307.9,4307.8,0.024]
[1755859498598,12.38865628,4307.9,4307.8,0.024]
[1755859498836,12.88307918,4307.9,4307.8,0.024]
[1755859500421,6.61576253,4307.9,4307.8,0.024]
[1755859500752,10.92421387,4307.9,4307.8,0.024]
[1755859500957,13.24553052,4307.9,4307.8,0.024]
[1755859501354,9.30053052,4307.9,4307.8,0.024]
[1755859501511,13.24473052,4307.9,4307.8,0.024]
[1755859501918,13.90473052,4307.9,4307.8,0.024]
[1755859502344,14.86614906,4307.9,4307.8,0.024]
[1755859502868,14.55523111,4307.9,4307.8,0.024]
[1755859503020,17.53881257,4307.9,4307.8,0.024]
[1755859503214,14.68225004,4307.9,4307.8,0.024]
[1755859503418,10.73725004,4307.9,4307.8,0.024]
[1755859503638,7.73725004,4307.9,4307.8,0.024]
[1755859503917,14.68225004,4307.9,4307.8,0.024]
[1755859504228,13.09938967,4307.9,4307.8,0.024]
[1755859504637,16.28598967,4307.9,4307.8,0.024]
[1755859504829,14.36745004,4307.9,4307.8,0.024]
[1755859505027,14.68305004,4307.9,4307.8,0.024]
[1755859506021,14.3195987,4307.9,4307.8,0.024]
[1755859506640,59.57185906,4308.0,4307.9,2.32131665]
[1755859506841,59.57185906,4308.0,4307.9,2.55584832]
[1755859508471,59.57185906,4308.0,4307.9,2.57906148]
[1755859508629,7.12517819,4308.0,4307.9,12.85446018]
[1755859508834,0.001,4308.4,4308.3,2.98110113]
[1755859509075,0.001,4308.4,4308.3,3.51132881]
[1755859512464,0.001,4308.4,4308.3,7.45532881]
[1755859512630,0.001,4308.4,4308.3,3.51132881]
[1755859512833,0.001,4308.4,4308.3,7.45532881]
[1755859513849,0.0002,4308.4,4308.3,7.45532881]
[1755859519086,0.0002,4308.4,4308.3,6.79432881]
[1755859521573,0.0002,4308.4,4308.3,6.79332881]
[1755859522868,0.4688,4308.4,4308.3,6.79332881]
[1755859523075,0.766,4308.4,4308.3,6.79332881]
[1755859523283,0.0002,4308.4,4308.3,2.85132881]
[1755859523574,0.0002,4308.4,4308.3,6.79332881]
[1755859525175,0.0002,4308.4,4308.3,6.79732881]
[1755859525691,0.0002,4308.4,4308.3,7.45732881]
[1755859525899,0.0002,4308.4,4308.3,9.24232881]
[1755859526197,0.0004,4308.5,4308.4,2.32104725]
[1755859526493,0.0004,4308.5,4308.4,2.88964256]
[1755859526872,0.0004,4308.5,4308.4,2.98267956]
[1755859527596,0.7662,4308.5,4308.4,6.92367956]
[1755859528094,0.0004,4308.5,4308.4,6.92367956]
[1755859530906,0.7662,4308.5,4308.4,2.41408425]
[1755859531111,0.7662,4308.5,4308.4,6.26104725]
[1755859531275,0.7662,4308.5,4308.4,2.32104725]
[1755859531476,0.7662,4308.5,4308.4,6.26104725]
[1755859531676,0.7662,4308.5,4308.3,0.004]
[1755859531886,1.2430882,4308.4,4308.3,0.004]
[1755859532215,1.5402882,4308.4,4308.3,0.004]
[1755859535502,6.86133545,4308.4,4308.3,0.004]
[1755859535898,7.35545066,4308.4,4308.3,0.004]
[1755859537192,7.35545066,4308.4,4307.8,0.024]
[1755859537193,2.32131665,4307.9,4307.8,0.024]
[1755859537394,19.11273578,4307.9,4307.8,0.024]
[1755859537627,19.58133578,4307.9,4307.8,0.024]
[1755859538330,19.58053578,4307.9,4307.8,0.024]
[1755859539722,19.94403034,4307.9,4307.8,0.024]
[1755859539910,22.23242647,4307.9,4307.8,0.024]
[1755859541017,18.29242647,4307.9,4307.8,0.024]
[1755859541224,22.23242647,4307.9,4307.8,0.024]
[1755859541825,18.29242647,4307.9,4307.8,0.024]
[1755859542138,22.23242647,4307.9,4307.8,0.024]
[1755859543137,21.73860604,4307.9,4307.8,0.024]
[1755859543366,18.75808939,4307.9,4307.8,0.024]
[1755859543508,14.81808939,4307.9,4307.8,0.024]
[1755859543947,18.75708939,4307.9,4307.8,0.024]
[1755859546213,18.39359483,4307.9,4307.8,0.024]
[1755859547711,14.45459483,4307.9,4307.8,0.024]
[1755859547941,18.39359483,4307.9,4307.8,0.024]
[1755859548117,14.45459483,4307.9,4307.8,0.024]
[1755859548319,18.39359483,4307.9,4307.8,0.024]
[1755859549460,18.75706821,4307.9,4307.8,0.024]
[1755859549960,9.6153987,4307.1,4307.0,0.004]
[1755859550255,17.94904651,4307.1,4307.0,0.004]
[1755859550422,18.39394651,4307.1,4307.0,0.004]
[1755859550623,18.75667786,4307.1,4307.0,0.004]
[1755859551140,18.84978986,4307.1,4307.0,0.004]
[1755859551341,20.97837575,4307.1,4307.0,0.004]
[1755859551558,18.65662794,4307.1,4307.0,0.004]
[1755859551923,20.97837575,4307.1,4307.0,0.004]
[1755859555153,21.63837575,4307.1,4307.0,0.004]
[1755859555353,51.63837575,4307.1,4307.0,0.004]
[1755859555554,51.63837575,4307.1,4305.8,0.02]
[1755859555555,9.6153987,4305.9,4305.8,0.02]
[1755859555754,16.30193857,4305.9,4305.8,0.02]
[1755859556263,1.786,4305.9,4305.8,0.02]
[1755859556479,5.725,4305.9,4305.8,0.02]
[1755859556683,8.725,4305.9,4305.8,0.02]
[1755859558041,9.4568,4305.9,4305.8,0.02]
[1755859558429,9.4568,4305.9,4305.8,0.024]
[1755859558682,9.1699,4305.9,4305.8,0.024]
[1755859558965,9.4568,4305.9,4305.8,0.024]
[1755859559138,10.56230941,4305.9,4305.8,0.024]
[1755859559538,6.98690607,4305.9,4305.8,0.024]
[1755859559838,10.92590607,4305.9,4305.8,0.024]
[1755859560442,6.98690607,4305.9,4305.8,0.024]
[1755859560638,10.19410607,4305.9,4305.8,0.024]
[1755859560852,9.08859666,4305.9,4305.8,0.024]
[1755859561070,9.82039666,4305.9,4305.8,0.024]
[1755859562166,10.31266283,4305.9,4305.8,0.024]
[1755859562501,5.64186283,4305.9,4305.8,0.024]
[1755859562780,5.64186283,4305.9,4305.8,2.58109924]
[1755859562781,0.36359666,4305.9,4305.8,2.58109924]
[1755859562944,0.36279666,4305.9,4305.8,2.58109924]
[1755859563970,0.36279666,4305.9,4305.8,2.21759924]
[1755859564978,0.36279666,4305.9,4304.9,3.02127371]
[1755859565145,0.36279666,4305.9,4304.8,0.02]
[1755859565146,3.939,4305.8,4305.0,0.30412737]
[1755859565345,3.939,4305.8,4304.9,2.32293433]
[1755859565555,3.939,4305.8,4305.1,2.32281177]
[1755859565759,3.939,4305.8,4305.5,2.32259422]
[1755859566299,3.939,4305.8,4305.4,2.32266456]
[1755859566669,3.939,4305.8,4305.6,2.32251033]
[1755859566862,0.4449,4305.9,4305.2,2.32272414]
[1755859567069,0.4449,4305.9,4304.9,0.004]
[1755859567070,3.939,4305.8,4305.3,2.3227185]
[1755859567260,7.0602987,4305.7,4304.9,0.004]
[1755859567466,3.938,4305.6,4304.9,2.32693294]
[1755859567698,3.938,4305.6,4305.0,2.32288037]
[1755859568070,3.938,4305.6,4304.9,0.004]
[1755859568417,3.938,4305.6,4305.3,2.32267559]
[1755859568703,3.938,4305.5,4305.2,2.32276972]
[1755859569013,4.3838,4305.5,4305.2,2.32276972]
[1755859569211,3.0,4305.2,4304.9,2.32691789]
[1755859569508,6.938,4305.1,4305.0,2.32282869]
[1755859569710,6.938,4305.1,4304.9,2.32692046]
[1755859571203,0.36361343,4305.5,4304.9,0.004]
[1755859571508,3.938,4305.4,4305.2,2.32275512]
[1755859571872,3.938,4305.4,4305.1,2.32281879]